[Event "*** Titled Tuesday Blitz"]
[Site "Chess.com"]
[Date "2021.03.09"]
[Round "4"]
[White "MoonlighT89"]
[Black "CraiggoryC"]
[Result "1-0"]
[WhiteElo "2583"]
[BlackElo "2284"]
[TimeControl "180+1"]
[EndTime "10:43:54 PST"]
[Termination "MoonlighT89 won on time"]

1. e4 {[%clk 0:03:00.9]} 1... d5 {[%clk 0:02:59.4]} 2. exd5 {[%clk 0:03:01.3]}
2... Nf6 {[%clk 0:02:59.8]} 3. Nf3 {[%clk 0:03:01.3]} 3... Bg4 {[%clk
0:02:59.3]} 4. Be2 {[%clk 0:03:01.3]} 4... Qxd5 {[%clk 0:02:58.9]} 5. Nc3 {[%clk
0:02:57.9]} 5... Qf5 {[%clk 0:02:54]} 6. h3 {[%clk 0:02:56.8]} 6... Bxf3 {[%clk
0:02:48.3]} 7. Bxf3 {[%clk 0:02:57.7]} 7... Nc6 {[%clk 0:02:48]} 8. O-O {[%clk
0:02:32.6]} 8... O-O-O {[%clk 0:02:38.6]} 9. Bxc6 {[%clk 0:02:31.2]} 9... bxc6
{[%clk 0:02:39.5]} 10. Qe2 {[%clk 0:02:26.6]} 10... Kb7 {[%clk 0:02:23]} 11. d3
{[%clk 0:02:20.4]} 11... e6 {[%clk 0:02:18.9]} 12. Be3 {[%clk 0:02:05.4]} 12...
Bc5 {[%clk 0:02:18.5]} 13. Na4 {[%clk 0:01:54.5]} 13... Bb6 {[%clk 0:02:09.8]}
14. Rad1 {[%clk 0:01:42]} 14... Nd5 {[%clk 0:02:00.6]} 15. Bc1 {[%clk
0:01:31.6]} 15... Nf4 {[%clk 0:01:45.4]} 16. Qf3 {[%clk 0:01:29.5]} 16... Ng6
{[%clk 0:01:36.9]} 17. Qxf5 {[%clk 0:01:19.7]} 17... exf5 {[%clk 0:01:37.8]} 18.
Rfe1 {[%clk 0:01:20]} 18... Rhe8 {[%clk 0:01:37.3]} 19. Nc3 {[%clk 0:01:02.4]}
19... Re7 {[%clk 0:01:05.3]} 20. g3 {[%clk 0:01:00.2]} 20... Rde8 {[%clk
0:01:03.6]} 21. Rxe7 {[%clk 0:01:00.4]} 21... Rxe7 {[%clk 0:01:00.5]} 22. Kg2
{[%clk 0:00:59.7]} 22... Bd4 {[%clk 0:00:52.8]} 23. Bd2 {[%clk 0:00:59]} 23...
f6 {[%clk 0:00:52.5]} 24. h4 {[%clk 0:00:55.9]} 24... Bxc3 {[%clk 0:00:48.8]}
25. bxc3 {[%clk 0:00:52]} 25... c5 {[%clk 0:00:41]} 26. Be3 {[%clk 0:00:48.3]}
26... Kc6 {[%clk 0:00:41]} 27. Rb1 {[%clk 0:00:48.2]} 27... f4 {[%clk 0:00:33]}
28. Bxf4 {[%clk 0:00:34.6]} 28... Nxf4+ {[%clk 0:00:31.9]} 29. gxf4 {[%clk
0:00:35.5]} 29... Re2 {[%clk 0:00:32.3]} 30. Rc1 {[%clk 0:00:35.9]} 30... c4
{[%clk 0:00:31.1]} 31. d4 {[%clk 0:00:30.4]} 31... Kd5 {[%clk 0:00:30.5]} 32.
Kf3 {[%clk 0:00:30.3]} 32... Re6 {[%clk 0:00:27.6]} 33. Rb1 {[%clk 0:00:29.5]}
33... Ra6 {[%clk 0:00:22.3]} 34. Rb5+ {[%clk 0:00:29.4]} 34... Kd6 {[%clk
0:00:21.2]} 35. Rc5 {[%clk 0:00:22.6]} 35... Rxa2 {[%clk 0:00:20.2]} 36. Rxc4
{[%clk 0:00:23.1]} 36... Rxc2 {[%clk 0:00:20.1]} 37. f5 {[%clk 0:00:21.5]} 37...
a5 {[%clk 0:00:19.4]} 38. Ke3 {[%clk 0:00:21]} 38... Ra2 {[%clk 0:00:18.9]} 39.
f3 {[%clk 0:00:19.7]} 39... a4 {[%clk 0:00:19.1]} 40. Kd3 {[%clk 0:00:18.9]}
40... a3 {[%clk 0:00:18.9]} 41. Ra4 {[%clk 0:00:19.1]} 41... Ra1 {[%clk
0:00:19.3]} 42. Kc4 {[%clk 0:00:18.5]} 42... a2 {[%clk 0:00:19.4]} 43. Kb3
{[%clk 0:00:18.6]} 43... Rf1 {[%clk 0:00:18.2]} 44. Rxa2 {[%clk 0:00:16.8]}
44... Rxf3 {[%clk 0:00:18.3]} 45. Rg2 {[%clk 0:00:17.5]} 45... Rxf5 {[%clk
0:00:16.3]} 46. Rxg7 {[%clk 0:00:17.8]} 46... Rh5 {[%clk 0:00:15.4]} 47. Rg4
{[%clk 0:00:18.1]} 47... f5 {[%clk 0:00:15.8]} 48. Rf4 {[%clk 0:00:18.2]} 48...
c5 {[%clk 0:00:15.4]} 49. Kc4 {[%clk 0:00:14.3]} 49... cxd4 {[%clk 0:00:15.4]}
50. Kxd4 {[%clk 0:00:15.2]} 50... Ke6 {[%clk 0:00:15.1]} 51. c4 {[%clk
0:00:15.8]} 51... Rh6 {[%clk 0:00:13.9]} 52. c5 {[%clk 0:00:15.9]} 52... Rg6
{[%clk 0:00:12.9]} 53. Kc4 {[%clk 0:00:16.2]} 53... Rg1 {[%clk 0:00:12.7]} 54.
Kb5 {[%clk 0:00:16.2]} 54... Rb1+ {[%clk 0:00:12.2]} 55. Kc6 {[%clk 0:00:14.8]}
55... Ke5 {[%clk 0:00:12.6]} 56. Rf2 {[%clk 0:00:14.5]} 56... f4 {[%clk
0:00:12.9]} 57. Re2+ {[%clk 0:00:15.1]} 57... Kf5 {[%clk 0:00:12.8]} 58. Re7
{[%clk 0:00:15]} 58... f3 {[%clk 0:00:11.6]} 59. Rxh7 {[%clk 0:00:14.7]} 59...
Kg4 {[%clk 0:00:11.2]} 60. Rf7 {[%clk 0:00:11.7]} 60... Kg3 {[%clk 0:00:07]} 61.
h5 {[%clk 0:00:08.3]} 61... f2 {[%clk 0:00:07.5]} 62. Kd6 {[%clk 0:00:06.2]}
62... f1=Q {[%clk 0:00:07.5]} 63. Rxf1 {[%clk 0:00:06.5]} 63... Rxf1 {[%clk
0:00:08]} 64. c6 {[%clk 0:00:07.4]} 64... Rc1 {[%clk 0:00:07.4]} 65. c7 {[%clk
0:00:05.1]} 65... Kg4 {[%clk 0:00:06.8]} 66. h6 {[%clk 0:00:05.7]} 66... Rd1+
{[%clk 0:00:03.8]} 67. Ke7 {[%clk 0:00:05]} 67... Rc1 {[%clk 0:00:03.2]} 68. Kd8
{[%clk 0:00:04.3]} 68... Rd1+ {[%clk 0:00:03.2]} 69. Ke8 {[%clk 0:00:04.9]}
69... Rc1 {[%clk 0:00:03.4]} 70. Kd7 {[%clk 0:00:05.3]} 70... Rd1+ {[%clk
0:00:03.4]} 71. Kc8 {[%clk 0:00:05.3]} 71... Rh1 {[%clk 0:00:02.8]} 72. Kb8
{[%clk 0:00:03.2]} 72... Rb1+ {[%clk 0:00:02.7]} 73. Ka7 {[%clk 0:00:02.3]}
73... Ra1+ {[%clk 0:00:02.8]} 74. Kb6 {[%clk 0:00:02.9]} 74... Rb1+ {[%clk
0:00:02.9]} 75. Kc6 {[%clk 0:00:03.5]} 75... Rc1+ {[%clk 0:00:03.2]} 76. Kd6
{[%clk 0:00:04.3]} 76... Rd1+ {[%clk 0:00:03.5]} 77. Ke5 {[%clk 0:00:04.9]}
77... Rc1 {[%clk 0:00:03.2]} 78. h7 {[%clk 0:00:04.7]} 78... Re1+ {[%clk
0:00:03.2]} 79. Kd4 {[%clk 0:00:04.8]} 79... Rd1+ {[%clk 0:00:02.9]} 80. Ke5
{[%clk 0:00:04.3]} 80... Re1+ {[%clk 0:00:02.8]} 81. Kd4 {[%clk 0:00:04.5]}
81... Rd1+ {[%clk 0:00:03.1]} 82. Kc3 {[%clk 0:00:03.8]} 82... Rc1+ {[%clk
0:00:03.3]} 83. Kd2 {[%clk 0:00:04.2]} 83... Rxc7 {[%clk 0:00:03]} 84. h8=Q
{[%clk 0:00:04.6]} 84... Rd7+ {[%clk 0:00:01.5]} 85. Ke3 {[%clk 0:00:04.8]}
85... Re7+ {[%clk 0:00:01.7]} 86. Kd4 {[%clk 0:00:05.1]} 1-0

[Event "*** Titled Tuesday Blitz"]
[Site "Chess.com"]
[Date "2021.03.09"]
[Round "4"]
[White "Kurkusha"]
[Black "Majesth"]
[Result "1/2-1/2"]
[WhiteElo "2351"]
[BlackElo "2547"]
[TimeControl "180+1"]
[EndTime "10:44:07 PST"]
[Termination "Game drawn by repetition"]

1. Nf3 {[%clk 0:03:00.9]} 1... g6 {[%clk 0:02:59]} 2. c4 {[%clk 0:02:59.9]} 2...
Bg7 {[%clk 0:02:59.3]} 3. d4 {[%clk 0:02:58]} 3... d6 {[%clk 0:02:59.1]} 4. g3
{[%clk 0:02:55.8]} 4... Nc6 {[%clk 0:02:56.5]} 5. Nc3 {[%clk 0:02:53.3]} 5... e5
{[%clk 0:02:56.7]} 6. d5 {[%clk 0:02:39]} 6... Nce7 {[%clk 0:02:56.2]} 7. Bg2
{[%clk 0:02:37.6]} 7... f5 {[%clk 0:02:56.1]} 8. e4 {[%clk 0:02:36.7]} 8... Nf6
{[%clk 0:02:56]} 9. Ng5 {[%clk 0:02:29.5]} 9... O-O {[%clk 0:02:49.6]} 10. O-O
{[%clk 0:02:21]} 10... c6 {[%clk 0:02:25.7]} 11. c5 {[%clk 0:01:54.1]} 11... h6
{[%clk 0:02:11.2]} 12. dxc6 {[%clk 0:01:05.4]} 12... hxg5 {[%clk 0:01:53]} 13.
cxb7 {[%clk 0:01:04.5]} 13... Bxb7 {[%clk 0:01:53.8]} 14. Qb3+ {[%clk
0:01:03.9]} 14... d5 {[%clk 0:01:44.2]} 15. exd5 {[%clk 0:00:54.4]} 15... Bxd5
{[%clk 0:01:23.9]} 16. Nxd5 {[%clk 0:00:53.8]} 16... Nfxd5 {[%clk 0:01:16.2]}
17. Bxg5 {[%clk 0:00:53.3]} 17... Bf6 {[%clk 0:01:12.4]} 18. Bxf6 {[%clk
0:00:48.3]} 18... Rxf6 {[%clk 0:01:13.3]} 19. Rfd1 {[%clk 0:00:48.4]} 19... e4
{[%clk 0:01:13.6]} 20. f3 {[%clk 0:00:47.1]} 20... Qb8 {[%clk 0:00:32.1]} 21.
Qc4 {[%clk 0:00:30.4]} 21... Qb4 {[%clk 0:00:28.3]} 22. Qxb4 {[%clk 0:00:26.1]}
22... Nxb4 {[%clk 0:00:29.2]} 23. fxe4 {[%clk 0:00:26.4]} 23... fxe4 {[%clk
0:00:30.1]} 24. Bxe4 {[%clk 0:00:26]} 24... Rc8 {[%clk 0:00:30.1]} 25. a3 {[%clk
0:00:24.8]} 25... Nbc6 {[%clk 0:00:22.3]} 26. b4 {[%clk 0:00:24.6]} 26... Ne5
{[%clk 0:00:16.6]} 27. Rac1 {[%clk 0:00:23.7]} 27... Nf5 {[%clk 0:00:15.3]} 28.
Bd5+ {[%clk 0:00:22.8]} 28... Kg7 {[%clk 0:00:14.7]} 29. Bb7 {[%clk 0:00:15.3]}
29... Rc7 {[%clk 0:00:13.4]} 30. Bg2 {[%clk 0:00:09]} 30... Ne3 {[%clk
0:00:12.8]} 31. Rd2 {[%clk 0:00:04.2]} 31... Nxg2 {[%clk 0:00:10]} 32. Rxg2
{[%clk 0:00:05.1]} 32... Nd3 {[%clk 0:00:08]} 33. Rd1 {[%clk 0:00:04.7]} 33...
Ne5 {[%clk 0:00:08.1]} 34. Re2 {[%clk 0:00:04.5]} 34... Nc4 {[%clk 0:00:07.5]}
35. Rde1 {[%clk 0:00:03.2]} 35... Nxa3 {[%clk 0:00:06.5]} 36. Ra1 {[%clk
0:00:03.2]} 36... Nc4 {[%clk 0:00:05.3]} 37. Kg2 {[%clk 0:00:02.6]} 37... Rf5
{[%clk 0:00:03.7]} 38. Rc1 {[%clk 0:00:02.8]} 38... Ne5 {[%clk 0:00:03.8]} 39.
Rce1 {[%clk 0:00:02.6]} 39... Nd3 {[%clk 0:00:04.1]} 40. Re7+ {[%clk 0:00:02.7]}
40... Rf7 {[%clk 0:00:04.3]} 41. Rxc7 {[%clk 0:00:02.2]} 41... Rxc7 {[%clk
0:00:05.2]} 42. Rb1 {[%clk 0:00:02.6]} 42... Rb7 {[%clk 0:00:04.9]} 43. b5
{[%clk 0:00:02.1]} 43... Nxc5 {[%clk 0:00:03.6]} 44. Kf3 {[%clk 0:00:02.6]}
44... Ne6 {[%clk 0:00:03.7]} 45. Ke3 {[%clk 0:00:02.5]} 45... Kf6 {[%clk
0:00:04.6]} 46. Kd3 {[%clk 0:00:02.7]} 46... Nc7 {[%clk 0:00:04.8]} 47. Kc4
{[%clk 0:00:03.1]} 47... Ne6 {[%clk 0:00:04.5]} 48. Kd5 {[%clk 0:00:03.1]} 48...
Rc7 {[%clk 0:00:05.4]} 49. b6 {[%clk 0:00:02.6]} 49... axb6 {[%clk 0:00:04.9]}
50. Rxb6 {[%clk 0:00:03.5]} 50... Rd7+ {[%clk 0:00:05.8]} 51. Ke4 {[%clk
0:00:04.1]} 51... Re7 {[%clk 0:00:05.7]} 52. Kf3 {[%clk 0:00:04.5]} 52... Kf7
{[%clk 0:00:06]} 53. h4 {[%clk 0:00:04.8]} 53... Nd4+ {[%clk 0:00:06.1]} 54. Kg4
{[%clk 0:00:05.4]} 54... Ne6 {[%clk 0:00:07]} 55. h5 {[%clk 0:00:05.2]} 55... g5
{[%clk 0:00:06]} 56. Rb5 {[%clk 0:00:03.9]} 56... Rd7 {[%clk 0:00:04.7]} 57.
Rf5+ {[%clk 0:00:04.1]} 57... Kg7 {[%clk 0:00:05]} 58. Re5 {[%clk 0:00:03.9]}
58... Rd4+ {[%clk 0:00:02.6]} 59. Kf5 {[%clk 0:00:04.2]} 59... Nf8 {[%clk
0:00:02.9]} 60. Kxg5 {[%clk 0:00:04.1]} 60... Nh7+ {[%clk 0:00:03.3]} 61. Kf5
{[%clk 0:00:04.5]} 61... Rd6 {[%clk 0:00:03.7]} 62. g4 {[%clk 0:00:04.4]} 62...
Kg8 {[%clk 0:00:03.8]} 63. g5 {[%clk 0:00:04.3]} 63... Nf8 {[%clk 0:00:04.2]}
64. g6 {[%clk 0:00:02.8]} 64... Rd1 {[%clk 0:00:04.3]} 65. Kg5 {[%clk
0:00:02.7]} 65... Rf1 {[%clk 0:00:04]} 66. Kh6 {[%clk 0:00:03.3]} 66... Rf6
{[%clk 0:00:03.6]} 67. Kg5 {[%clk 0:00:02.9]} 67... Rd6 {[%clk 0:00:03.2]} 68.
Rf5 {[%clk 0:00:02.8]} 68... Ne6+ {[%clk 0:00:02.3]} 69. Kh6 {[%clk 0:00:02.8]}
69... Nf8 {[%clk 0:00:02.8]} 70. Re5 {[%clk 0:00:02.9]} 70... Ne6 {[%clk
0:00:02.7]} 71. Rf5 {[%clk 0:00:03]} 71... Nf8 {[%clk 0:00:03]} 72. Rb5 {[%clk
0:00:03.6]} 72... Ne6 {[%clk 0:00:03]} 73. Rb8+ {[%clk 0:00:03.7]} 73... Nf8
{[%clk 0:00:03.2]} 74. Kg5 {[%clk 0:00:04]} 74... Rd5+ {[%clk 0:00:03]} 75. Kg4
{[%clk 0:00:03.6]} 75... Rd6 {[%clk 0:00:03.9]} 76. Kg5 {[%clk 0:00:03.8]} 76...
Rd5+ {[%clk 0:00:04.2]} 77. Kh6 {[%clk 0:00:04.5]} 77... Rd6 {[%clk 0:00:05.1]}
78. Rb7 {[%clk 0:00:04.9]} 78... Ne6 {[%clk 0:00:04.2]} 79. Re7 {[%clk
0:00:05.3]} 79... Nf8 {[%clk 0:00:03.9]} 80. Rg7+ {[%clk 0:00:05.1]} 80... Kh8
{[%clk 0:00:04.2]} 81. Rf7 {[%clk 0:00:05.3]} 81... Kg8 {[%clk 0:00:04.4]} 82.
Rg7+ {[%clk 0:00:05.1]} 82... Kh8 {[%clk 0:00:04.2]} 83. Rf7 {[%clk 0:00:05.6]}
83... Kg8 {[%clk 0:00:04.6]} 84. Rf5 {[%clk 0:00:05.1]} 84... Ne6 {[%clk
0:00:04.7]} 85. Rf7 {[%clk 0:00:04.4]} 85... Nf8 {[%clk 0:00:04.3]} 1/2-1/2

[Event "*** Titled Tuesday Blitz"]
[Site "Chess.com"]
[Date "2021.03.09"]
[Round "4"]
[White "anon481216"]
[Black "Vugar_Manafov"]
[Result "1/2-1/2"]
[WhiteElo "2510"]
[BlackElo "2668"]
[TimeControl "180+1"]
[EndTime "10:44:32 PST"]
[Termination "Game drawn by repetition"]

1. d4 {[%clk 0:03:00.9]} 1... Nf6 {[%clk 0:02:59]} 2. c4 {[%clk 0:03:01.4]} 2...
e6 {[%clk 0:02:57.9]} 3. g3 {[%clk 0:03:01.6]} 3... Bb4+ {[%clk 0:02:54.1]} 4.
Bd2 {[%clk 0:02:59.9]} 4... a5 {[%clk 0:02:54.3]} 5. Nf3 {[%clk 0:02:59.7]} 5...
O-O {[%clk 0:02:53.1]} 6. Bg2 {[%clk 0:02:59.6]} 6... d5 {[%clk 0:02:49.6]} 7.
Qc2 {[%clk 0:02:56.1]} 7... Nbd7 {[%clk 0:02:47.6]} 8. O-O {[%clk 0:02:55.4]}
8... c6 {[%clk 0:02:47.7]} 9. Bf4 {[%clk 0:02:51.2]} 9... Be7 {[%clk 0:02:46.4]}
10. Nbd2 {[%clk 0:02:34.6]} 10... Nh5 {[%clk 0:02:45.9]} 11. Be3 {[%clk
0:02:34.5]} 11... b5 {[%clk 0:02:45.3]} 12. cxb5 {[%clk 0:02:30.3]} 12... cxb5
{[%clk 0:02:46.2]} 13. Nb3 {[%clk 0:02:30.7]} 13... Nb6 {[%clk 0:02:25.1]} 14.
Nc5 {[%clk 0:02:16.1]} 14... Nc4 {[%clk 0:02:23.4]} 15. Bc1 {[%clk 0:02:15.5]}
15... a4 {[%clk 0:02:22.8]} 16. Rb1 {[%clk 0:02:12]} 16... Qb6 {[%clk 0:02:19]}
17. b3 {[%clk 0:02:11.2]} 17... axb3 {[%clk 0:02:18.6]} 18. axb3 {[%clk
0:02:11.2]} 18... Na3 {[%clk 0:02:18.8]} 19. Bxa3 {[%clk 0:02:10.9]} 19... Rxa3
{[%clk 0:02:19.7]} 20. Rfc1 {[%clk 0:02:09.4]} 20... Nf6 {[%clk 0:02:16.8]} 21.
Ne5 {[%clk 0:02:07.3]} 21... b4 {[%clk 0:02:11.4]} 22. e3 {[%clk 0:02:05.1]}
22... h6 {[%clk 0:02:10.1]} 23. Bf1 {[%clk 0:02:03.2]} 23... Bd6 {[%clk
0:02:02.3]} 24. Ned3 {[%clk 0:01:50.4]} 24... Rd8 {[%clk 0:01:40.8]} 25. Qd2
{[%clk 0:01:49.3]} 25... Bd7 {[%clk 0:01:21.1]} 26. Qxb4 {[%clk 0:01:43.1]}
26... Qa7 {[%clk 0:01:20.8]} 27. Qd2 {[%clk 0:01:27]} 27... Bb5 {[%clk
0:01:17.4]} 28. b4 {[%clk 0:01:24.4]} 28... Ra8 {[%clk 0:01:12.8]} 29. Ne5
{[%clk 0:01:13.8]} 29... Bxf1 {[%clk 0:01:10.7]} 30. Rxf1 {[%clk 0:01:08.5]}
30... Bxe5 {[%clk 0:00:51.9]} 31. dxe5 {[%clk 0:01:08.3]} 31... Nd7 {[%clk
0:00:47]} 32. Nxd7 {[%clk 0:01:03.3]} 32... Qxd7 {[%clk 0:00:47.3]} 33. Rb2
{[%clk 0:01:01.8]} 33... Qb5 {[%clk 0:00:45.9]} 34. Rc1 {[%clk 0:00:50.1]} 34...
Ra1 {[%clk 0:00:42.5]} 35. Rbb1 {[%clk 0:00:44.6]} 35... R8a2 {[%clk 0:00:37.9]}
36. Qd1 {[%clk 0:00:31.8]} 36... Rxb1 {[%clk 0:00:36.8]} 37. Rxb1 {[%clk
0:00:32]} 37... g6 {[%clk 0:00:37.6]} 38. Qf1 {[%clk 0:00:30.3]} 38... Qb6
{[%clk 0:00:32.4]} 39. b5 {[%clk 0:00:30]} 39... h5 {[%clk 0:00:32.5]} 40. h4
{[%clk 0:00:29.4]} 40... Kg7 {[%clk 0:00:32.3]} 41. Qc1 {[%clk 0:00:28.7]} 41...
Ra5 {[%clk 0:00:29.7]} 42. Qc6 {[%clk 0:00:24.9]} 42... Qxc6 {[%clk 0:00:29.4]}
43. bxc6 {[%clk 0:00:25]} 43... Rc5 {[%clk 0:00:30.3]} 44. Rb6 {[%clk 0:00:25]}
44... Rc1+ {[%clk 0:00:30.3]} 45. Kg2 {[%clk 0:00:24.9]} 45... Kf8 {[%clk
0:00:27.8]} 46. Kf3 {[%clk 0:00:25.1]} 46... Rc2 {[%clk 0:00:25.3]} 47. Rb8+
{[%clk 0:00:24.6]} 47... Kg7 {[%clk 0:00:24.6]} 48. Rc8 {[%clk 0:00:24.4]} 48...
Kh7 {[%clk 0:00:24.9]} 49. Kg2 {[%clk 0:00:24]} 49... Rc1 {[%clk 0:00:24.2]} 50.
f3 {[%clk 0:00:22.9]} 50... Rc2+ {[%clk 0:00:23.2]} 51. Kf1 {[%clk 0:00:23.2]}
51... Kg7 {[%clk 0:00:23.7]} 52. Ke1 {[%clk 0:00:22]} 52... Kh7 {[%clk
0:00:21.4]} 53. Kd1 {[%clk 0:00:19.6]} 53... Rc3 {[%clk 0:00:20.6]} 54. Kd2
{[%clk 0:00:19.3]} 54... Rc5 {[%clk 0:00:20.4]} 55. Kd3 {[%clk 0:00:18.9]} 55...
Kg7 {[%clk 0:00:20.9]} 56. Kd4 {[%clk 0:00:19]} 56... Rc4+ {[%clk 0:00:21]} 57.
Kd3 {[%clk 0:00:19.9]} 57... Rc5 {[%clk 0:00:21.9]} 58. g4 {[%clk 0:00:19.7]}
58... Rc1 {[%clk 0:00:19.4]} 59. gxh5 {[%clk 0:00:18.7]} 59... gxh5 {[%clk
0:00:20.1]} 60. e4 {[%clk 0:00:18.6]} 60... dxe4+ {[%clk 0:00:19.6]} 61. Kxe4
{[%clk 0:00:18.8]} 61... Rc4+ {[%clk 0:00:19.6]} 62. Kd3 {[%clk 0:00:19.1]}
62... Rc5 {[%clk 0:00:18.7]} 63. c7 {[%clk 0:00:17.6]} 63... Rc1 {[%clk
0:00:17.4]} 64. Ke4 {[%clk 0:00:17.7]} 64... Rc4+ {[%clk 0:00:16.7]} 65. Ke3
{[%clk 0:00:17.9]} 65... Kh7 {[%clk 0:00:16.1]} 66. Kd3 {[%clk 0:00:17.7]} 66...
Rc1 {[%clk 0:00:15.9]} 67. Kd4 {[%clk 0:00:17.4]} 67... Kg7 {[%clk 0:00:14.6]}
68. Ke3 {[%clk 0:00:16.9]} 68... Rc4 {[%clk 0:00:14.8]} 69. Kf2 {[%clk
0:00:16.4]} 69... Kh7 {[%clk 0:00:14.8]} 70. Kg3 {[%clk 0:00:16.4]} 70... Kg7
{[%clk 0:00:15.2]} 71. Kf2 {[%clk 0:00:16.6]} 71... Kh7 {[%clk 0:00:14.1]} 72.
Ke2 {[%clk 0:00:16.7]} 72... Kg7 {[%clk 0:00:14.3]} 73. f4 {[%clk 0:00:16]}
73... Kh7 {[%clk 0:00:12.3]} 74. Kd3 {[%clk 0:00:16.2]} 74... Rc1 {[%clk
0:00:12]} 75. Kd4 {[%clk 0:00:15.4]} 75... Kg7 {[%clk 0:00:11.6]} 76. Ke4 {[%clk
0:00:13.1]} 76... Rc4+ {[%clk 0:00:10.8]} 77. Kd3 {[%clk 0:00:13.4]} 77... Rc1
{[%clk 0:00:10.3]} 78. f5 {[%clk 0:00:13.7]} 78... exf5 {[%clk 0:00:09.5]} 79.
Kd4 {[%clk 0:00:14]} 79... Kh7 {[%clk 0:00:08.8]} 80. Kd5 {[%clk 0:00:12.7]}
80... f4 {[%clk 0:00:09]} 81. Ke4 {[%clk 0:00:12.8]} 81... Rc4+ {[%clk
0:00:08.3]} 82. Kf3 {[%clk 0:00:12.4]} 82... Kg7 {[%clk 0:00:08.3]} 83. Kf2
{[%clk 0:00:12.3]} 83... Kh7 {[%clk 0:00:08.7]} 84. Ke2 {[%clk 0:00:12.1]} 84...
Kg7 {[%clk 0:00:07.3]} 85. Kf3 {[%clk 0:00:12]} 85... Kh7 {[%clk 0:00:06.7]} 86.
Rf8 {[%clk 0:00:11.3]} 86... Rxc7 {[%clk 0:00:05.8]} 87. Kxf4 {[%clk 0:00:11.6]}
87... Kg7 {[%clk 0:00:06.2]} 88. Ra8 {[%clk 0:00:11]} 88... Kg6 {[%clk
0:00:05.7]} 89. Ra6+ {[%clk 0:00:10.3]} 89... Kg7 {[%clk 0:00:05.7]} 90. Kg5
{[%clk 0:00:10.5]} 90... Rc5 {[%clk 0:00:06.2]} 91. Kxh5 {[%clk 0:00:10]} 91...
Rxe5+ {[%clk 0:00:05.6]} 92. Kg4 {[%clk 0:00:10]} 92... Rc5 {[%clk 0:00:06.1]}
93. h5 {[%clk 0:00:09.8]} 93... Rc4+ {[%clk 0:00:06]} 94. Kg5 {[%clk 0:00:09.6]}
94... Rc5+ {[%clk 0:00:06.2]} 95. Kg4 {[%clk 0:00:10]} 95... Rc4+ {[%clk
0:00:07.1]} 96. Kg5 {[%clk 0:00:10.3]} 96... Rc5+ {[%clk 0:00:08]} 97. Kg4
{[%clk 0:00:10.7]} 1/2-1/2

[Event "*** Titled Tuesday Blitz"]
[Site "Chess.com"]
[Date "2021.03.09"]
[Round "5"]
[White "olksuna"]
[Black "real_karma"]
[Result "1-0"]
[WhiteElo "2660"]
[BlackElo "2363"]
[TimeControl "180+1"]
[EndTime "10:54:10 PST"]
[Termination "olksuna won by resignation"]

1. e4 {[%clk 0:03:00.9]} 1... b6 {[%clk 0:02:58.6]} 2. d4 {[%clk 0:02:59.7]}
2... Bb7 {[%clk 0:02:57.9]} 3. Bd3 {[%clk 0:02:56.8]} 3... e6 {[%clk 0:02:57.4]}
4. Nc3 {[%clk 0:02:54]} 4... Nf6 {[%clk 0:02:54.2]} 5. Nge2 {[%clk 0:02:50.3]}
5... Bb4 {[%clk 0:02:51.4]} 6. O-O {[%clk 0:02:48.5]} 6... d5 {[%clk 0:02:47.5]}
7. exd5 {[%clk 0:02:45.1]} 7... Nxd5 {[%clk 0:02:45.8]} 8. Nxd5 {[%clk
0:02:42.3]} 8... Qxd5 {[%clk 0:02:46.7]} 9. Nf4 {[%clk 0:02:39.1]} 9... Qg5
{[%clk 0:02:30.7]} 10. d5 {[%clk 0:02:20.9]} 10... Bxd5 {[%clk 0:02:25.3]} 11.
Nxd5 {[%clk 0:02:20.6]} 11... Qxd5 {[%clk 0:02:23.9]} 12. Qg4 {[%clk 0:02:19.9]}
12... Bf8 {[%clk 0:02:04.8]} 13. Be4 {[%clk 0:02:15.9]} 13... Qd7 {[%clk
0:01:48.6]} 1-0

[Event "*** Titled Tuesday Blitz"]
[Site "Chess.com"]
[Date "2021.03.09"]
[Round "5"]
[White "mariofs"]
[Black "gisela_roque"]
[Result "1-0"]
[WhiteElo "2193"]
[BlackElo "1749"]
[TimeControl "180+1"]
[EndTime "10:54:14 PST"]
[Termination "mariofs won by resignation"]

1. d4 {[%clk 0:03:00.9]} 1... e6 {[%clk 0:02:59.3]} 2. Nf3 {[%clk 0:03:00.1]}
2... Nf6 {[%clk 0:02:55]} 3. Bf4 {[%clk 0:02:56.8]} 3... c5 {[%clk 0:02:48.2]}
4. c3 {[%clk 0:02:55.4]} 4... Be7 {[%clk 0:02:44.8]} 5. e3 {[%clk 0:02:53.6]}
5... O-O {[%clk 0:02:44.3]} 6. h3 {[%clk 0:02:53.5]} 6... Nc6 {[%clk 0:02:44.5]}
7. Bd3 {[%clk 0:02:52.1]} 7... d5 {[%clk 0:02:44.5]} 8. O-O {[%clk 0:02:49.2]}
8... Bd6 {[%clk 0:02:41.1]} 9. Ne5 {[%clk 0:02:49]} 9... Bxe5 {[%clk 0:02:36.5]}
10. dxe5 {[%clk 0:02:48.6]} 10... Nd7 {[%clk 0:02:36]} 11. Bc2 {[%clk
0:02:34.8]} 11... h6 {[%clk 0:02:29]} 12. Nd2 {[%clk 0:02:31.2]} 12... Ndxe5
{[%clk 0:02:27.8]} 13. e4 {[%clk 0:02:31.2]} 13... d4 {[%clk 0:02:13.9]} 14.
Bxe5 {[%clk 0:02:04.8]} 14... Nxe5 {[%clk 0:02:10.2]} 15. f4 {[%clk 0:02:05.1]}
15... Nc4 {[%clk 0:02:07.9]} 16. Nxc4 {[%clk 0:02:04.4]} 1-0

[Event "*** Titled Tuesday Blitz"]
[Site "Chess.com"]
[Date "2021.03.09"]
[Round "5"]
[White "Frogo47"]
[Black "mr_gustavo"]
[Result "1-0"]
[WhiteElo "2545"]
[BlackElo "2394"]
[TimeControl "180+1"]
[EndTime "10:54:24 PST"]
[Termination "Frogo47 won by resignation"]

1. e4 {[%clk 0:02:55.1]} 1... c5 {[%clk 0:02:59.6]} 2. Nf3 {[%clk 0:02:54.8]}
2... d6 {[%clk 0:03:00.1]} 3. d4 {[%clk 0:02:54.9]} 3... cxd4 {[%clk 0:03:00.8]}
4. Nxd4 {[%clk 0:02:55.8]} 4... Nf6 {[%clk 0:03:01.3]} 5. Nc3 {[%clk 0:02:56.4]}
5... a6 {[%clk 0:03:01.9]} 6. Bg5 {[%clk 0:02:56.7]} 6... e6 {[%clk 0:03:01.7]}
7. f4 {[%clk 0:02:56.9]} 7... h6 {[%clk 0:03:02.3]} 8. Bh4 {[%clk 0:02:56.4]}
8... Qb6 {[%clk 0:03:03]} 9. Qd2 {[%clk 0:02:56.8]} 9... Qxb2 {[%clk 0:03:02.5]}
10. Rb1 {[%clk 0:02:57]} 10... Qa3 {[%clk 0:03:02.9]} 11. e5 {[%clk 0:02:57.6]}
11... dxe5 {[%clk 0:03:02.8]} 12. fxe5 {[%clk 0:02:58.5]} 12... Nfd7 {[%clk
0:03:03]} 13. Ne4 {[%clk 0:02:58.7]} 13... Qxa2 {[%clk 0:03:03.4]} 14. Rd1
{[%clk 0:02:58.8]} 14... Qd5 {[%clk 0:03:04]} 15. Qe3 {[%clk 0:02:55.9]} 15...
Qxe5 {[%clk 0:03:02]} 16. Be2 {[%clk 0:02:55.4]} 16... Nc6 {[%clk 0:02:41.8]}
17. Nxc6 {[%clk 0:02:49.4]} 17... bxc6 {[%clk 0:02:41.2]} 18. O-O {[%clk
0:02:46.2]} 18... Bc5 {[%clk 0:02:37.4]} 19. Qxc5 {[%clk 0:02:45.6]} 19... Qxc5+
{[%clk 0:02:26.3]} 20. Nxc5 {[%clk 0:02:45]} 20... g5 {[%clk 0:02:27.2]} 21.
Nxd7 {[%clk 0:02:43.4]} 21... Bxd7 {[%clk 0:02:28.1]} 22. Bg3 {[%clk 0:02:37.9]}
22... f5 {[%clk 0:02:13.2]} 23. Be5 {[%clk 0:02:35.3]} 23... Rh7 {[%clk
0:02:10.4]} 24. Bh5+ {[%clk 0:02:29.7]} 24... Ke7 {[%clk 0:02:09.6]} 25. Rb1
{[%clk 0:02:26]} 25... Ra7 {[%clk 0:02:04.7]} 26. Bg6 {[%clk 0:02:18.6]} 1-0